[Event "44th BAN-ch OMICON 2018"]
[Site "Dhaka"]
[Date "2018.11.26"]
[Round "3"]
[White "Chatterjee, Debaraj"]
[Black "Zia, Tahsin Tajwar"]
[Result "1/2-1/2"]
[ECO "E11"]
[WhiteElo "2277"]
[BlackElo "1803"]
[Annotator "NA"]
[PlyCount "59"]
[EventDate "2018.11.24"]
[EventType "swiss"]
[EventCountry "BAN"]
[SourceTitle "playchess.com"]
[Source "ChessBase"]
[SourceQuality "1"]
[TimeControl "40/5400+30:1800+30"]

1. d4 {[%emt 0:01:00]} d5 {[%emt 0:00:00]} 2. c4 {[%emt 0:00:28]} e6 {[%emt 0:00:01]} 3. Nf3 {[%emt 0:00:21]} Nf6 {[%emt 0:00:11]} 4. g3 {[%emt 0:00:35]} Bb4+ {[%emt 0:00:08]} 5. Bd2 {[%emt 0:01:45]} Be7 {[%emt 0:00:25]} 6. Bg2 {[%emt 0:00:18]} O-O {[%emt 0:00:13]} 7. O-O {[%emt 0:00:03]} Nbd7 {[%emt 0:00:22]} 8. Qc2 {[%emt 0:06:10] E11: Bogo-Indian} (8. Nc3 c6 9. Bf4 dxc4 10. e4 Re8 11. a4 b6 12. d5 exd5 13. exd5 Bb7 14. a5 bxa5 15. d6 Bf8 16. Nd2 Nd5 17. Nxd5 cxd5 18. Nxc4 dxc4 19. Bxb7 {½-½ (42) Nakamura,H (2777)-Karjakin,S (2773) Saint Louis 2018}) 8... Ne4 {[%emt 0:00:42]} 9. Nc3 {[%emt 0:03:31]} Nxd2 {[%emt 0:02:10]} 10. Nxd2 {[%emt 0:00:16]} dxc4 {[%emt 0:02:21]} 11. Nxc4 {[%emt 0:00:34]} Nb6 {[%emt 0:12:19]} 12. Na5 {[%emt 0:05:48]} c6 $146 {[%emt 0:04:36]} ({Predecessor:} 12... Qxd4 13. Nxb7 Bxb7 14. Bxb7 Rab8 15. Be4 Nc4 16. Rfd1 Qe5 17. Rab1 Bf6 18. Rd7 g6 19. Na4 Rb4 20. Bd3 Nxb2 {½-½ (20) Mandiza,F (2390)-Panchanathan,M (2480) Charlotte 2018}) 13. Rfd1 {[%emt 0:01:03]} Nd5 {[%emt 0:05:03]} 14. Nc4 {[%emt 0:04:07]} a5 {[%emt 0:02:37]} 15. e4 {[%emt 0:05:03]} Nb4 {[%emt 0:01:50]} 16. Qe2 {[%emt 0:01:36]} b5 {[%emt 0:02:14]} 17. Ne3 {[%emt 0:04:35]} Qb6 {[%emt 0:04:26]} 18. d5 {[%emt 0:16:49]} Bd7 {[%emt 0:07:15]} 19. d6 {[%emt 0:04:13]} Bf6 {[%emt 0:01:33]} 20. Ng4 {[%emt 0:01:48]} Bd4 {[%emt 0:02:38]} 21. a3 {[%emt 0:17:47]} Na6 $2 {[%emt 0:02:51]} (21... e5 $1 $11 22. axb4 axb4 23. Rxa8 Rxa8) 22. e5 {[%emt 0:00:27]} f5 {[%emt 0:04:09]} 23. exf6 $1 {[%emt 0:01:28]} gxf6 {[%emt 0:00:52] [#]} 24. Kh1 {[%emt 0:07:38]} (24. Nxb5 $1 $18 {[%mdl 512] and White stays clearly on top.} Qxb5 25. Qxb5 cxb5 26. Bxa8 (26. Rxd4 e5 $16)) 24... f5 {[%emt 0:03:07] [#]} 25. Qd2 $2 {[%emt 0:07:15] [#]} (25. Rxd4 $1 $18 {[%mdl 512]} Qxd4 {[%mdl 64] Double Attack} 26. Ne5 {[%mdl 64] Double Attack}) 25... Bg7 $1 {[%emt 0:02:44]} 26. Ne3 {[%emt 0:01:08]} Nc5 {[%emt 0:01:20]} 27. Qc2 {[%emt 0:01:08] [#]} a4 $1 {[%emt 0:01:00]} 28. Ne2 {[%emt 0:01:11]} Nb3 {[%emt 0:01:13]} 29. Rab1 {[%emt 0:00:06]} Rae8 {[%emt 0:01:43]} 30. Nf4 $19 {[%emt 0:04:23]} 1/2-1/2

[Event "44th BAN-ch OMICON 2018"]
[Site "Dhaka"]
[Date "2018.11.26"]
[Round "3"]
[White "Rahman, Syed Mahfuzur"]
[Black "Subrota, Biswas"]
[Result "0-1"]
[ECO "D10"]
[WhiteElo "2224"]
[BlackElo "2126"]
[Annotator "NA"]
[PlyCount "125"]
[EventDate "2018.11.24"]
[EventType "swiss"]
[EventCountry "BAN"]
[SourceTitle "playchess.com"]
[Source "ChessBase"]
[SourceQuality "1"]
[TimeControl "40/5400+30:1800+30"]

{[%evp 20,116,-32,32767,32767,32767,-81,32767,32767,32767,32767,32767,32767,32767,32767,32767,-29,-67,-69,-104,-120,-136,-48,-103,-30,-128,-146,-227,32767,-13,-12,-27,0,0,0,0,5,8,8,0,25,16,19,8,9,0,24,0,20,0,0,32767,32767,32767,32767,32767,32767,32767,32767,32767,32767,32767,32767,32767,32767,32767,32767,-18,-14,32767,32767,-41,-28,-45,-25,-194,-233,-244,-283,-245,-436,-409,-512,-706,-656,-502,-616,-637,-690,-639,-629,-358,-368,-533,-741,-710,-889,-29965,-29976]} 1. d4 {[%emt 0:03:51]} Nf6 {[%emt 0:00:00]} 2. Bg5 {[%emt 0:00:11]} d5 {[%emt 0:00:00]} 3. c4 {[%emt 0:00:46]} dxc4 {[%emt 0:00:00]} 4. Nc3 {[%emt 0:00:18]} c6 {[%emt 0:00:48]} 5. a4 {[%emt 0:00:54]} Qa5 {[%emt 0:07:03]} 6. Bd2 {[%emt 0:24:11] D10: Slav Defence: 3 cxd5 (without early Nf3) and 3 Nc3} Qb6 {[%emt 0:02:26]} (6... e5 7. Ne4 Bb4 8. Nd6+ Ke7 9. dxe5 Bxd2+ 10. Qxd2 Qxd2+ 11. Kxd2 Ng4 12. Nf3 Nd7 13. e3 Rd8 14. Ke1 Ndxe5 {½-½ (14) Vladimirov,Y (2586)-Sasikiran,K (2514) Kolkata 2000}) 7. Nf3 {[%emt 0:01:35]} Bf5 {[%emt 0:00:30]} 8. Nh4 {[%emt 0:14:35]} Be4 $146 {[%emt 0:10:11]} ({Predecessor:} 8... Bg4 9. h3 Bh5 10. g4 Bg6 11. Nxg6 hxg6 12. g5 Nd5 13. e4 Nb4 {0-1 (35) Boriak,A (2010)-Polyakevich,S (2293) Koltsovo 2006}) 9. f3 {[%emt 0:02:33]} Bg6 {[%emt 0:02:17]} 10. e3 {[%emt 0:00:38]} Bd3 {[%emt 0:06:40]} 11. Bxd3 {[%emt 0:03:45]} cxd3 {[%emt 0:00:02]} 12. Qb1 {[%emt 0:03:01]} Na6 {[%emt 0:09:13]} 13. a5 {[%emt 0:09:15]} Qb3 {[%emt 0:01:51]} 14. O-O {[%emt 0:02:02]} Nb4 {[%emt 0:01:43]} 15. Ra3 {[%emt 0:01:55]} Qc2 {[%emt 0:00:20]} 16. Ne4 {[%emt 0:03:01]} e6 {[%emt 0:04:25]} 17. Qxc2 {[%emt 0:00:35]} dxc2 {[%emt 0:00:51]} 18. Rb3 {[%emt 0:00:29]} Nfd5 {[%emt 0:01:39]} 19. g3 {[%emt 0:04:41]} b6 {[%emt 0:01:22]} 20. Ra1 {[%emt 0:01:09]} Rc8 {[%emt 0:01:42]} (20... Rd8 $17 21. axb6 axb6) 21. axb6 {[%emt 0:09:01]} axb6 {[%emt 0:00:02]} 22. Nf2 {[%emt 0:01:59] [#]} c5 $1 {[%emt 0:03:46]} 23. e4 {[%emt 0:00:37]} (23. Rc1 $17) 23... Nf6 {[%emt 0:02:29]} 24. Bxb4 {[%emt 0:03:06]} cxb4 {[%emt 0:00:02]} 25. Rc1 $1 {[%emt 0:00:56]} Rc4 {[%emt 0:00:58]} 26. Rd3 {[%emt 0:00:52]} Nd7 {[%emt 0:01:14]} 27. f4 {[%emt 0:02:51]} Be7 {[%emt 0:04:11]} 28. Ng2 {[%emt 0:00:51]} O-O {[%emt 0:03:30]} 29. Ne3 {[%emt 0:00:06] Double Attack} Rc7 {[%emt 0:00:23]} 30. Rxc2 {[%emt 0:00:05]} Rxc2 {[%emt 0:00:06]} 31. Nxc2 {[%emt 0:00:01]} Rc8 {[%emt 0:00:42]} 32. Na1 {[%emt 0:02:42]} b5 {[%emt 0:00:53]} 33. Kf1 {[%emt 0:01:17]} f5 {[%emt 0:00:13]} 34. Ke2 {[%emt 0:00:58]} Nb6 {[%emt 0:01:12]} 35. Rd1 {[%emt 0:01:50]} Ra8 {[%emt 0:01:00]} 36. exf5 {[%emt 0:00:43]} exf5 {[%emt 0:00:03]} 37. Nd3 {[%emt 0:00:09]} Ra2 {[%emt 0:00:48]} 38. Nb3 {[%emt 0:00:36]} Nc4 {[%emt 0:01:15]} 39. Ra1 {[%emt 0:00:48]} Rxa1 {[%emt 0:00:36]} 40. Nxa1 {[%emt 0:00:00]} Kf7 {[%emt 0:00:00]} 41. Nc2 {[%emt 0:01:07]} b3 {[%emt 0:04:48]} 42. Na1 {[%emt 0:07:39]} Nxb2 {[%emt 0:01:48]} 43. Nxb2 {[%emt 0:04:02]} Ba3 {[%emt 0:00:05]} 44. Nxb3 {[%emt 0:01:18]} Bxb2 {[%emt 0:00:03]} 45. Kd3 {[%emt 0:07:00]} Ke6 {[%emt 0:00:22]} 46. Kc2 $1 {[%emt 0:00:15]} Ba3 {[%emt 0:00:04]} 47. Kc3 $2 {[%emt 0:00:27]} (47. Kd3 $11 {and White has nothing to worry.}) 47... Kd5 {[%emt 0:00:48]} 48. Kd3 {[%emt 0:13:19] [#]} Bb2 $1 {[%emt 0:00:29]} 49. Ke3 {[%emt 0:00:00]} Bc3 {[%emt 0:00:51]} 50. Kd3 {[%emt 0:00:00]} b4 {[%emt 0:00:52]} 51. Ke3 {[%emt 0:00:00]} Kc4 {[%emt 0:00:10]} 52. Na5+ {[%emt 0:00:00] [#]} Kb5 $1 {[%emt 0:00:29]} 53. Nb7 {[%emt 0:00:31]} b3 {[%emt 0:01:17]} 54. Kd3 {[%emt 0:00:10]} b2 {[%emt 0:00:17]} 55. Kc2 {[%emt 0:00:01]} Kc6 {[%emt 0:00:17]} 56. Nc5 {[%emt 0:01:30]} Bxd4 {[%emt 0:00:08]} 57. Nd3 {[%emt 0:00:25]} Kd5 {[%emt 0:00:08]} 58. Nxb2 {[%emt 0:00:17]} Bxb2 {[%emt 0:00:24]} 59. Kxb2 {[%emt 0:00:01]} Ke4 {[%emt 0:00:01]} 60. Kc3 {[%emt 0:00:19]} Kf3 {[%emt 0:00:17]} 61. Kd4 {[%emt 0:00:14]} Kg2 {[%emt 0:00:03]} 62. Ke5 {[%emt 0:00:06]} g6 {[%emt 1:00:53]} 63. Kd4 {[%emt 0:03:56]} 0-1

[Event "44th BAN-ch OMICON 2018"]
[Site "Dhaka"]
[Date "2018.11.26"]
[Round "3"]
[White "Mehdi Hasan Parag"]
[Black "Abu Sufian, Shakil"]
[Result "1/2-1/2"]
[ECO "B12"]
[WhiteElo "2218"]
[BlackElo "2230"]
[Annotator "NA"]
[PlyCount "38"]
[EventDate "2018.11.24"]
[EventType "swiss"]
[EventCountry "BAN"]
[SourceTitle "playchess.com"]
[Source "ChessBase"]
[SourceQuality "1"]
[TimeControl "40/5400+30:1800+30"]

1. e4 {[%emt 0:00:00]} c6 {[%emt 0:00:00]} 2. d4 {[%emt 0:00:02]} d5 {[%emt 0:00:00]} 3. e5 {[%emt 0:00:07]} Bf5 {[%emt 0:00:00]} 4. Nf3 {[%emt 0:00:16]} e6 {[%emt 0:00:00]} 5. Be2 {[%emt 0:00:18]} c5 {[%emt 0:00:00]} 6. Be3 {[%emt 0:00:18]} cxd4 {[%emt 0:00:01]} 7. Nxd4 {[%emt 0:00:18]} Ne7 {[%emt 0:00:06]} 8. O-O {[%emt 0:02:24]} Nbc6 {[%emt 0:00:19]} 9. Bb5 {[%emt 0:00:03]} a6 {[%emt 0:00:44]} 10. Bxc6+ {[%emt 0:00:02]} bxc6 {[%emt 0:00:06]} 11. c4 {[%emt 0:00:51]} Qd7 {[%emt 0:03:36]} 12. Nc3 {[%emt 0:00:44]} dxc4 {[%emt 0:01:07]} 13. Na4 {[%emt 0:10:52]} Nd5 {[%emt 0:03:07]} 14. Nxf5 {[%emt 0:02:22]} exf5 {[%emt 0:00:06]} 15. Qe2 {[%emt 0:18:44]} Be7 {[%emt 0:16:49]} 16. Qxc4 {[%emt 0:10:38]} O-O {[%emt 0:02:50]} 17. Bc5 {[%emt 0:01:32]} f4 $14 {[%emt 0:21:58]} 18. Qe4 {[%emt 0:11:52]} Rab8 {[%emt 0:01:12]} 19. Rac1 {[%emt 0:01:06]} Rfe8 {[%emt 0:05:22]} 1/2-1/2

[Event "44th BAN-ch OMICON 2018"]
[Site "Dhaka"]
[Date "2018.11.26"]
[Round "3"]
[White "Mohammad, Javed"]
[Black "Saiful Islam, Chowdhury"]
[Result "1/2-1/2"]
[ECO "C65"]
[WhiteElo "2135"]
[BlackElo "2110"]
[Annotator "NA"]
[PlyCount "145"]
[EventDate "2018.11.24"]
[EventType "swiss"]
[EventCountry "BAN"]
[SourceTitle "playchess.com"]
[Source "ChessBase"]
[SourceQuality "1"]
[TimeControl "40/5400+30:1800+30"]

1. e4 {[%emt 0:00:00]} e5 {[%emt 0:00:00]} 2. Nf3 {[%emt 0:00:15]} Nc6 {[%emt 0:00:05]} 3. Bb5 {[%emt 0:00:27]} Nf6 {[%emt 0:02:36]} 4. d3 {[%emt 0:01:31]} d6 {[%emt 0:00:38]} 5. O-O {[%emt 0:01:06]} Be7 {[%emt 0:00:14]} 6. c3 {[%emt 0:01:39]} O-O {[%emt 0:00:31]} 7. h3 {[%emt 0:01:16]} Bd7 {[%emt 0:00:52]} 8. Nbd2 {[%emt 0:05:35]} Re8 {[%emt 0:04:23] C65: Ruy Lopez: Berlin Defence (3...Nf6), unusual lines and 4 0-0 Bc5} 9. Re1 {[%emt 0:02:36]} Bf8 {[%emt 0:00:59]} 10. Nf1 {[%emt 0:00:32]} g6 {[%emt 0:03:23]} 11. Ng3 {[%emt 0:05:56]} Bg7 {[%emt 0:00:53]} 12. a4 {[%emt 0:01:26]} h6 $146 {[%emt 0:07:28]} ({Predecessor:} 12... Ne7 13. Bc4 c5 14. Qb3 Rf8 15. Ng5 Be8 16. f4 exf4 17. Bxf4 {1-0 (67) Najer,E (2658)-Inarkiev,E (2660) Moscow 2015}) 13. Bc4 {[%emt 0:22:11]} Na5 {[%emt 0:03:11]} 14. Ba2 {[%emt 0:00:19]} c5 {[%emt 0:00:26]} 15. b4 {[%emt 0:01:26]} cxb4 {[%emt 0:01:45]} 16. cxb4 {[%emt 0:00:03]} Nc6 {[%emt 0:00:16]} 17. b5 {[%emt 0:05:44]} Ne7 {[%emt 0:05:56]} 18. d4 {[%emt 0:05:56]} exd4 {[%emt 0:09:00]} 19. Nxd4 {[%emt 0:00:56]} d5 {[%emt 0:02:27]} 20. e5 {[%emt 0:16:19]} Nh7 {[%emt 0:09:40] [#]} 21. Ba3 {[%emt 0:01:46]} (21. e6 $1 $16 {[%cal Re6d7]} fxe6 22. Rxe6) 21... Bc8 {[%emt 0:13:36]} (21... Nf8 $16 {is a better defense.}) 22. Rc1 {[%emt 0:03:43]} Nf8 {[%emt 0:00:38]} 23. Bd6 {[%emt 0:05:39]} Be6 {[%emt 0:06:51]} 24. Qd2 {[%emt 0:04:05]} Rc8 {[%emt 0:01:54]} 25. f4 {[%emt 0:01:50]} Qd7 {[%emt 0:01:14]} 26. Nde2 {[%emt 0:03:59]} h5 {[%emt 0:05:33]} 27. Nd4 {[%emt 0:02:30]} Bh6 {[%emt 0:01:09]} 28. Qf2 {[%emt 0:00:25]} Rxc1 {[%emt 0:01:20]} 29. Rxc1 {[%emt 0:00:05]} Rc8 {[%emt 0:00:12]} 30. Rxc8 {[%emt 0:00:38]} Nxc8 {[%emt 0:00:36]} 31. f5 {[%emt 0:00:21]} h4 {[%emt 0:09:50]} 32. Bxf8 {[%emt 0:02:15]} hxg3 {[%emt 0:03:02]} 33. Qxg3 {[%emt 0:00:05]} Kxf8 {[%emt 0:00:24]} 34. fxe6 {[%emt 0:00:25]} fxe6 {[%emt 0:00:57]} 35. Kh1 {[%emt 0:00:45]} (35. Bb1 $16 Ne7 36. Kf2) 35... Qf7 {[%emt 0:00:55]} 36. Qa3+ {[%emt 0:01:51]} Ne7 {[%emt 0:00:38]} 37. Nf3 {[%emt 0:00:15]} (37. Kg1 $11) 37... Qf4 {[%emt 0:00:14]} 38. Qc3 $2 {[%emt 0:02:01]} (38. Bb1 $11 {and White has nothing to worry.}) 38... Qxa4 {[%emt 0:00:55]} 39. Qb3 {[%emt 0:00:58]} Qxb3 40. Bxb3 {[%emt 0:00:00]} a6 {[%emt 0:00:00]} 41. bxa6 {[%emt 0:06:16]} bxa6 {[%emt 0:02:23]} 42. Ba4 {[%emt 0:25:55]} Nf5 {[%emt 0:05:33]} 43. g4 {[%emt 0:00:00]} Ne3 {[%emt 0:00:19]} 44. Nd4 {[%emt 0:00:00]} Ke7 {[%emt 0:04:56]} 45. Nc6+ {[%emt 0:00:00]} Ke8 {[%emt 0:05:31]} 46. Nd4+ {[%emt 0:00:00]} Kf7 $17 {[%emt 0:02:18]} 47. Bd7 {[%emt 0:00:00]} a5 {[%emt 0:00:30]} 48. Kg1 {[%emt 0:00:00]} Ke7 {[%emt 0:09:43]} 49. Ba4 {[%emt 0:00:00]} Nc4 {[%emt 0:03:26]} 50. Nc6+ {[%emt 0:00:00]} Kf8 {[%emt 0:00:53]} 51. Nd8 {[%emt 0:00:00]} Be3+ {[%emt 0:01:07]} 52. Kf1 {[%emt 0:00:00]} Nb6 {[%emt 0:01:35]} (52... Nxe5 $17 53. h4 Nxg4) 53. Bc2 {[%emt 0:00:00]} (53. Nxe6+ $15 Ke7 54. Nc7) 53... a4 {[%emt 0:00:34]} 54. Ke2 {[%emt 0:00:00]} a3 {[%emt 0:00:37]} 55. Bb3 {[%emt 0:00:00]} Ke7 {[%emt 0:00:57]} 56. Nc6+ {[%emt 0:00:00]} Kd7 {[%emt 0:00:05]} 57. Nb8+ {[%emt 0:00:00]} Kc8 {[%emt 0:00:26]} 58. Kxe3 {[%emt 0:00:00]} Kxb8 {[%emt 0:00:09]} 59. h4 {[%emt 0:00:00]} Nd7 {[%emt 0:01:44]} 60. Kd4 $1 {[%emt 0:00:00]} Kc7 {[%emt 0:00:24]} 61. h5 {[%emt 0:00:00]} Nf8 {[%emt 0:01:10]} 62. Kc3 {[%emt 0:00:00]} Kd8 {[%emt 0:01:20]} 63. Kb4 {[%emt 0:01:59]} gxh5 {[%emt 0:00:33]} 64. gxh5 {[%emt 0:00:13]} Ke7 {[%emt 0:00:04]} 65. Kxa3 {[%emt 0:00:44]} Nd7 $11 {[%emt 0:00:05]} 66. h6 {[%emt 0:02:38]} Nxe5 {[%emt 0:00:12]} 67. h7 {[%emt 0:00:22]} Nf7 {[%emt 0:00:12]} 68. Kb4 {[%emt 0:00:38]} Kd6 {[%emt 0:00:15]} 69. Kc3 {[%emt 0:00:55]} Ke5 {[%emt 0:00:32]} 70. Kd3 {[%emt 0:00:19]} Nh8 {[%emt 0:00:10]} 71. Ke3 {[%emt 0:00:56]} Ng6 {[%emt 0:00:12]} 72. Bc2 {[%emt 0:00:33]} Nh8 {[%emt 0:00:13]} 73. Bb3 {[%emt 0:00:50] Ke4+ Kxe4*} 1/2-1/2

[Event "44th BAN-ch OMICON 2018"]
[Site "Dhaka"]
[Date "2018.11.26"]
[Round "3"]
[White "S M Sharon"]
[Black "Ahmed, Sk. Nasir"]
[Result "0-1"]
[ECO "B20"]
[WhiteElo "2123"]
[BlackElo "2119"]
[Annotator "NA"]
[PlyCount "127"]
[EventDate "2018.11.24"]
[EventType "swiss"]
[EventCountry "BAN"]
[SourceTitle "playchess.com"]
[Source "ChessBase"]
[SourceQuality "1"]
[TimeControl "40/5400+30:1800+30"]

1. e4 {[%emt 0:06:05]} c5 {[%emt 0:00:00]} 2. d3 {[%emt 0:00:11]} d5 {[%emt 0:03:00]} 3. Nd2 {[%emt 0:00:08]} Nc6 {[%emt 0:00:51]} 4. Ngf3 {[%emt 0:02:33]} Bg4 {[%emt 0:04:06]} 5. h3 {[%emt 0:02:09]} Bh5 {[%emt 0:00:17]} 6. exd5 {[%emt 0:01:11]} Qxd5 {[%emt 0:00:28]} 7. g4 {[%emt 0:02:13]} Bg6 {[%emt 0:00:07]} 8. Bg2 {[%emt 0:00:34]} e6 {[%emt 0:03:54]} 9. Nh4 {[%emt 0:03:44]} Qd7 {[%emt 0:05:04]} 10. Nc4 {[%emt 0:21:06]} Be7 {[%emt 0:12:21]} 11. g5 {[%emt 0:04:47]} Bd6 {[%emt 0:04:33]} ({Black should try} 11... Rd8 $11) 12. Bxc6 {[%emt 0:14:02]} Qxc6 {[%emt 0:16:27]} 13. Qf3 {[%emt 0:01:37]} Qxf3 {[%emt 0:10:06]} 14. Nxd6+ {[%emt 0:02:14]} ({Don't play} 14. Nxf3 Bc7 $15) 14... Kd7 {[%emt 0:00:02]} 15. Nxf3 {[%emt 0:00:15]} Kxd6 {[%emt 0:00:06]} 16. Bf4+ {[%emt 0:00:17]} Ke7 {[%emt 0:00:39]} 17. Ne5 {[%emt 0:02:56]} f6 {[%emt 0:05:57]} 18. Nc4 {[%emt 0:10:32]} e5 {[%emt 0:19:48]} 19. Be3 {[%emt 0:02:12]} Rc8 {[%emt 0:02:43]} 20. f4 {[%emt 0:07:49]} b5 {[%emt 0:00:05]} 21. gxf6+ {[%emt 0:01:50]} gxf6 {[%emt 0:00:07]} 22. Nd2 {[%emt 0:00:23]} exf4 {[%emt 0:01:02]} 23. Bxf4 {[%emt 0:00:18]} Kf7 {[%emt 0:00:39]} 24. a4 {[%emt 0:00:28]} b4 {[%emt 0:03:03]} 25. Nc4 {[%emt 0:00:12]} Kg7 {[%emt 0:01:31]} 26. h4 {[%emt 0:05:31]} h5 {[%emt 0:01:14]} 27. O-O-O {[%emt 0:05:35]} Ne7 {[%emt 0:00:02]} 28. b3 {[%emt 0:01:37]} Nd5 {[%emt 0:00:14]} 29. Bd2 {[%emt 0:00:18]} Rc6 {[%emt 0:00:57]} 30. Rhg1 {[%emt 0:00:27]} Kf7 {[%emt 0:00:55]} 31. Rdf1 {[%emt 0:00:15]} Re8 {[%emt 0:00:32]} 32. Rf3 {[%emt 0:00:32]} Re2 {[%emt 0:00:46]} 33. Rg5 {[%emt 0:00:56]} f5 {[%emt 0:02:08]} 34. Kd1 {[%emt 0:01:14]} Rce6 {[%emt 0:00:26]} 35. Rgxf5+ {[%emt 0:00:40]} (35. Nd6+ $16 Ke7 {[#]} 36. Rxg6 $1 {[%mdl 512]} (36. Nxf5+ Bxf5 37. Rfxf5 Nc3+ 38. Bxc3 bxc3 $11) 36... Rxd2+ 37. Kxd2 Rxg6 38. Nxf5+ Ke6 39. d4) 35... Bxf5 {[%emt 0:00:30]} 36. Rxf5+ {[%emt 0:00:01] Double Attack} Nf6 {[%emt 0:00:14]} 37. Nd6+ {[%emt 0:00:47]} Ke7 {[%emt 0:00:42]} 38. Ne4 $2 {[%emt 0:00:37] [#]} (38. Nc4 $11) 38... Nxe4 $1 {[%emt 0:00:31]} 39. dxe4 {[%emt 0:00:28]} R2xe4 {[%emt 0:01:44]} 40. Rxc5 {[%emt 0:00:00]} R6e5 $2 {[%emt 0:00:00]} ({Better is} 40... Rxh4 $19 41. Bg5+ Kd6) 41. Rxe5+ {[%emt 0:19:34]} Rxe5 {[%emt 0:01:25]} 42. Bxb4+ {[%emt 0:01:28]} Ke6 {[%emt 0:00:19]} 43. Bd2 {[%emt 0:01:14]} Kd5 {[%emt 0:00:51]} 44. Bg5 {[%emt 0:00:58]} Ke4 {[%emt 0:00:05]} 45. Kd2 {[%emt 0:02:17]} Rc5 {[%emt 0:00:57]} 46. c4 {[%emt 0:00:26]} Rf5 {[%emt 0:04:27]} 47. Kc3 {[%emt 0:03:27]} a5 {[%emt 0:02:08]} 48. Bd8 {[%emt 0:00:54]} Rf3+ {[%emt 0:00:29]} 49. Kc2 {[%emt 0:00:06]} Rh3 {[%emt 0:00:24]} 50. Bxa5 {[%emt 0:04:04]} Rxh4 {[%emt 0:01:43]} 51. Bc7 {[%emt 0:00:45]} Rg4 {[%emt 0:03:21]} (51... Kd4 $1 $15 52. a5 Rg4 53. Bb6+ Ke5) 52. Kc3 {[%emt 0:00:49]} h4 {[%emt 0:01:43]} 53. a5 {[%emt 0:00:11]} h3 {[%emt 0:00:02]} 54. a6 {[%emt 0:00:22]} Rg6 {[%emt 0:00:08]} 55. a7 {[%emt 0:00:20]} Ra6 {[%emt 0:00:03]} 56. Kb4 {[%emt 0:01:31]} Rxa7 {[%emt 0:00:14]} 57. Bg3 {[%emt 0:00:37]} Ra2 {[%emt 0:05:40]} 58. Kc5 {[%emt 0:00:19]} Rg2 {[%emt 0:00:55]} 59. Bb8 {[%emt 0:00:38]} Rg5+ {[%emt 0:01:19]} 60. Kb6 {[%emt 0:00:35]} Re5 {[%emt 0:00:08]} 61. c5 {[%emt 0:00:35]} h2 {[%emt 0:00:15]} 62. Bxe5 {[%emt 0:00:29]} Kxe5 {[%emt 0:00:03]} 63. b4 {[%emt 0:00:28]} h1=Q {[%emt 0:00:12]} 64. c6 {[%emt 0:00:35]} 0-1

[Event "44th BAN-ch OMICON 2018"]
[Site "Dhaka"]
[Date "2018.11.26"]
[Round "3"]
[White "Hossain, Showkat Pollab"]
[Black "Anata, Choudhury"]
[Result "1-0"]
[ECO "B52"]
[WhiteElo "2119"]
[BlackElo "2141"]
[Annotator "NA"]
[PlyCount "77"]
[EventDate "2018.11.24"]
[EventType "swiss"]
[EventCountry "BAN"]
[SourceTitle "playchess.com"]
[Source "ChessBase"]
[SourceQuality "1"]
[TimeControl "40/5400+30:1800+30"]

1. e4 {[%emt 0:14:21]} c5 {[%emt 0:00:00]} 2. Nf3 {[%emt 0:00:10]} d6 {[%emt 0:00:00]} 3. c3 {[%emt 0:00:12]} Nf6 {[%emt 0:00:11]} 4. Bb5+ {[%emt 0:00:16]} Bd7 {[%emt 0:00:24]} 5. Bxd7+ {[%emt 0:00:20]} Qxd7 {[%emt 0:00:12]} 6. d3 {[%emt 0:01:38]} e6 {[%emt 0:02:11] B52: Sicilian: Moscow Variation with 3...Bd7} 7. O-O {[%emt 0:04:58]} Nc6 {[%emt 0:00:22]} 8. h3 {[%emt 0:01:03]} Be7 {[%emt 0:00:30]} 9. Re1 {[%emt 0:03:50]} O-O {[%emt 0:00:39]} 10. Bf4 {[%emt 0:00:47]} Rac8 {[%emt 0:03:37]} (10... Rfd8 11. Nbd2 b5 12. a3 Qb7 13. Qe2 d5 14. e5 Nd7 15. Nf1 a5 16. Ng3 {½-½ (16) Savic,M (2545)-Palac,M (2539) Jahorina 2018}) 11. Nbd2 {[%emt 0:01:42]} Rfd8 {[%emt 0:00:22]} 12. Qe2 {[%emt 0:00:22]} Qe8 $146 {[%emt 0:04:57]} ({Predecessor:} 12... h6 13. Rad1 Qc7 14. g4 Nh7 15. Kg2 b5 16. h4 e5 {1-0 (27) Gurieli,N (2351)-Lakos,N (2335) Batumi 1999}) 13. Nf1 {[%emt 0:03:35]} Nb8 {[%emt 0:17:31]} 14. Ng3 {[%emt 0:03:26]} Qb5 {[%emt 0:11:11]} 15. a4 {[%emt 0:01:15]} Qa6 {[%emt 0:00:13]} 16. b4 {[%emt 0:04:37]} cxb4 {[%emt 0:02:46]} 17. cxb4 {[%emt 0:01:02]} d5 {[%emt 0:00:17]} 18. b5 {[%emt 0:00:43]} Qa5 {[%emt 0:00:32]} 19. e5 {[%emt 0:01:28]} Ne8 {[%emt 0:00:07]} 20. Bg5 {[%emt 0:06:13]} Bxg5 {[%emt 0:03:19]} 21. Nxg5 {[%emt 0:00:13]} h6 {[%emt 0:00:16]} 22. Nf3 {[%emt 0:01:45]} Rc7 {[%emt 0:01:33]} 23. Qe3 {[%emt 0:02:04]} Qb6 {[%emt 0:39:21] [#]} 24. Nd4 $1 {[%emt 0:00:35]} a5 {[%emt 0:00:11]} 25. Kh2 {[%emt 0:02:34]} Nd7 {[%emt 0:06:40]} 26. f4 {[%emt 0:00:13]} Nf8 {[%emt 0:00:11]} 27. f5 {[%emt 0:05:57]} Rc3 {[%emt 0:00:36]} 28. Nge2 {[%emt 0:04:27]} Rc7 {[%emt 0:00:07]} 29. Qf4 {[%emt 0:03:01]} ({Better is} 29. Nf4) 29... exf5 $16 {[%emt 0:04:29]} 30. Nxf5 {[%emt 0:02:43]} Ne6 {[%emt 0:00:41]} 31. Qg3 {[%emt 0:00:21]} Kh7 {[%emt 0:00:12]} 32. Nf4 {[%emt 0:02:31]} d4 {[%emt 0:00:27]} 33. Qf3 {[%emt 0:03:23]} Nxf4 {[%emt 0:01:09]} 34. Qxf4 {[%emt 0:00:10]} Rc3 {[%emt 0:00:19]} 35. Rf1 {[%emt 0:03:49]} Rd7 {[%emt 0:00:42]} 36. Rf3 {[%emt 0:01:04]} Rcc7 {[%emt 0:01:12]} 37. Re1 {[%emt 0:00:53]} Qc5 {[%emt 0:00:14]} 38. Rg3 {[%emt 0:00:40]} Rd5 {[%emt 0:00:31]} 39. Rxg7+ {[%emt 0:00:33]} 1-0